Cogmind - Beta 10.2 @@@ ROGUE MODE // 2021.11.27 @ 20:59:04 Player: Jezoensis Result: Destroyed by H-77 Assassin with High-powered Shotgun Performance ------------- Evolutions (7) 3500 Regions Visited (24) 4800 Robots Destroyed (346) 1730 Value Destroyed (16464) 16464 Prototype IDs (52) 1040 Alien Tech Used (1) 200 Bonus (9864) 9864 TOTAL SCORE: 37598 Bonus ------- Triggered Max Security 1000 High Alert Combat Kills 3805 Follower Combat Kills 798 Entered Garrisons 800 Used RIF Installer 2000 Aligned with FarCom 300 Met Zhirov 300 Met R17 at Cetus 500 Scanned by Researcher 500 Friendly Fire -139 Cogmind --------- Core Integrity 0/1300 Matter 0/300 Energy 100/100 System Corruption 38% Temperature Cool (0) Movement Core (50) Location -3/Quarantine Parts ------- > --- POWER (2) -------- (None) > --- PROPULSION (5) --- (None) > --- UTILITY (11) ----- (None) > --- WEAPON (3) ------- (None) > --- INVENTORY (4) ---- Flexi-carbon Leg Experimental Heat Sink Improved Force Field Improved System Backup Module Peak State ------------ > --- POWER ------------ Heavy Antimatter Reactor Particle Reactor > --- PROPULSION ------- Armored Medium Treads Advanced Heavy Treads Centrium Heavy Treads > --- UTILITY ---------- Large Storage Unit High-capacity Storage Unit High-capacity Storage Unit Enhanced Optical Array Advanced Terrain Scan Processor Modified TNC Advanced Salvage Targeting Computer Advanced Weapon Cycler Improved Transmission Jammer Centrium Medium Armor Plating Experimental Shield Generator > --- WEAPON ----------- Coil Gun Coil Gun Improved KE Penetrator > --- INVENTORY -------- Heavy Antimatter Reactor Medium Treads Medium Treads Biometal Medium Treads Experimental Heat Sink Large Storage Unit Improved Energy Well High-capacity Matter Pod Advanced Terrain Scanner Advanced Terrain Scanner Advanced Weapon Cycler Centrium Medium Armor Plating Centrium Medium Armor Plating Advanced Thermal Shield Force Field Improved Force Field Advanced Force Field Improved System Backup Module Long-range Tractor Beam Advanced Integration Mediator Matter Neutralizer Improved KE Penetrator Improved KE Penetrator Heavy Shock Bomb Launcher Fusion Bomb Launcher Advanced Remote Datajack [Rating: 144] Favorites ----------- Power Heavy Deuterium Engine Engine Heavy Deuterium Engine Power Core Enhanced Fission Core Reactor Heavy Antimatter Reactor Propulsion Light Treads Treads Light Treads Utility High-capacity Storage Unit Device Advanced Terrain Scanner Storage High-capacity Storage Unit Processor Advanced Terrain Scan Processor Hackware Relay Coupler [Grunt] Protection Centrium Medium Armor Plating Weapon KE Penetrator Energy Gun EM Pulse Gun Energy Cannon Improved EM Pulse Cannon Ballistic Gun KE Penetrator Launcher Heavy Rocket Launcher Special Weapon Advanced Remote Datajack Slashing Weapon Makeshift Sword Build | -11 -10 -10 -10 -9 -8 -8 -7 -7 -7 -7 -6 -6 -6 -5 -5 -5 -4 -4 -4 -4 -3 -3 -3 -3 ------- Run | Scr Mat Min Exi Min Mat Gar Fac Gar Fac Gar Fac Ext Cet Fac Upp Upp Fac Upp Upp Zhi Pro Res Gar Qua Slots Evolved 14 | . . . . . 4 . 2 . . . 2 . . 2 . . 2 . . . . 2 . . Power 1 | . . . . . . . . . . . . . . 1 . . . . . . . . . . Propulsion 3 | . . . . . 1 . 1 . . . . . . . . . 1 . . . . . . . Utility 9 | . . . . . 2 . 1 . . . 2 . . 1 . . 1 . . . . 2 . . Weapon 1 | . . . . . 1 . . . . . . . . . . . . . . . . . . . Parts Attached 627 | 7 2 1 1 9 51 13 37 13 . 28 28 33 18 81 21 27 35 9 5 9 11 125 29 34 Power 25 | 1 1 . . . 1 1 . . . 2 1 . 1 5 . 1 . . . 2 . 4 2 3 Engine 9 | 1 1 . . . 1 1 . . . 1 1 . 1 2 . . . . . . . . . . Core 6 | . . . . . . . . . . 1 . . . 2 . 1 . . . 1 . 1 . . Reactor 10 | . . . . . . . . . . . . . . 1 . . . . . 1 . 3 2 3 Propulsion 61 | 2 . . . 1 10 . 4 1 . 3 2 7 2 5 1 3 3 . . . . 7 6 4 Treads 61 | 2 . . . 1 10 . 4 1 . 3 2 7 2 5 1 3 3 . . . . 7 6 4 Leg . | . . . . . . . . . . . . . . . . . . . . . . . . . Wheel . | . . . . . . . . . . . . . . . . . . . . . . . . . Hover . | . . . . . . . . . . . . . . . . . . . . . . . . . Flight . | . . . . . . . . . . . . . . . . . . . . . . . . . Utility 354 | 2 . . 1 3 23 6 19 8 . 14 15 17 7 47 17 18 22 6 3 4 6 85 18 13 Device 269 | 1 . . . 1 12 6 13 8 . 13 13 12 4 38 14 14 15 5 3 3 6 66 16 6 Storage 20 | 1 . . 1 2 1 . 1 . . . 1 5 1 1 . . . . . . . 4 1 1 Processor 13 | . . . . . 2 . 3 . . . 1 . 1 . . 1 3 . . . . 1 . 1 Hackware 2 | . . . . . . . . . . . . . . . . . . . . . . . . 2 Protection 50 | . . . . . 8 . 2 . . 1 . . 1 8 3 3 4 1 . 1 . 14 1 3 Artifact . | . . . . . . . . . . . . . . . . . . . . . . . . . Weapon 187 | 2 1 1 . 5 17 6 14 4 . 9 10 9 8 24 3 5 10 3 2 3 5 29 3 14 Energy Gun 3 | . 1 . . 1 . . . . . . . . . . . . . . . . . 1 . . Energy Cannon 60 | . . . . . 7 3 3 2 . 2 5 . 4 7 2 2 4 2 1 1 1 12 . 2 Ballistic Gun 84 | 2 . . . 1 4 2 6 1 . 3 3 6 3 14 . 3 5 1 . 2 3 16 3 6 Ballistic Cannon . | . . . . . . . . . . . . . . . . . . . . . . . . . Launcher 18 | . . . . 1 . 1 . 1 . 4 . 1 1 . 1 . 1 . 1 . 1 . . 5 Special Weapon 1 | . . . . . . . . . . . . . . . . . . . . . . . . 1 Impact Weapon . | . . . . . . . . . . . . . . . . . . . . . . . . . Slashing Weapon 21 | . . 1 . 2 6 . 5 . . . 2 2 . 3 . . . . . . . . . . Piercing Weapon . | . . . . . . . . . . . . . . . . . . . . . . . . . Special Melee Weapon . | . . . . . . . . . . . . . . . . . . . . . . . . . Unidentified Prototypes 19 | . . . . . 1 . 1 . . . 1 1 3 4 . . 1 . . 4 . 3 . . Parts Lost 55 | . . . . . . 2 1 . . 5 3 1 1 3 2 3 . 1 . . 2 9 3 19 Power 4 | . . . . . . . . . . 1 . . . . . 1 . . . . . . . 2 Propulsion 21 | . . . . . . . 1 . . 3 2 1 1 1 1 . . . . . . 5 1 5 Utility 14 | . . . . . . . . . . . . . . . 1 2 . 1 . . . 3 . 7 Weapon 16 | . . . . . . 2 . . . 1 1 . . 2 . . . . . . 2 1 2 5 Highest Loss Streak 13 | . . . . . . 2 1 . . 2 2 1 1 3 1 2 . 1 . . 2 3 1 13 Average Slot Usage (%) 95 | . 100 100 100 94 99 100 99 100 100 98 96 99 93 93 93 94 94 94 94 77 94 91 91 82 Engine 6 | . 14 14 14 14 9 9 7 7 7 6 6 6 6 9 11 6 5 5 5 5 5 1 . . Core 1 | . . . . . . . . . . . . . . 1 . 3 5 5 5 5 5 3 . . Reactor 1 | . . . . . . . . . . . . . . . . . . . . . . 3 9 7 Treads 21 | . 28 28 28 28 26 27 29 30 30 29 23 25 20 17 16 17 21 21 21 21 21 15 15 15 Device 11 | . 14 14 14 12 7 9 7 7 7 6 13 13 7 10 10 6 14 14 15 12 15 17 12 10 Storage 15 | . 14 14 14 15 18 18 15 15 15 15 13 13 14 17 17 17 15 15 15 15 15 14 17 19 Processor 14 | . . . . . 8 9 10 15 15 15 20 20 23 17 17 20 15 15 15 15 15 18 19 12 Energy Cannon 3 | . . . . . 5 7 1 6 7 6 7 8 9 2 2 3 1 3 3 . 3 1 . . Ballistic Gun 12 | . 27 14 14 8 17 14 16 15 15 14 9 9 9 13 14 13 13 11 10 1 11 12 13 7 Slashing Weapon 1 | . . 6 14 12 3 2 4 . . . 1 . . . . . . . . . . . . . Naked Turns 20 | . . . . . . . . . . . . . . . . . . . . . . . . 20 Heaviest Build 180 | 13 14 14 18 74 67 63 88 85 85 91 94 95 114 128 125 127 141 137 137 137 133 146 160 180 Greatest Support 177 | 40 40 40 40 43 67 66 94 94 92 92 94 103 132 140 135 135 150 150 150 150 150 177 177 160 Greatest Overweight (x) 2 | . . . . 1 1 . . . . 1 1 1 1 . . . . . . . . 1 . 2 Average Overweight (x) . | . . . . . . . . . . . . . . . . . . . . . . . . . Largest Inventory Capacity 32 | 6 6 6 8 20 20 16 20 20 20 20 20 20 26 26 26 26 26 26 26 26 26 26 32 32 Average Capacity 21 | 5 6 6 6 12 16 16 18 20 20 20 18 18 20 26 26 26 26 26 26 26 26 26 29 30 Most Carried 32 | 4 6 6 8 15 16 16 20 20 20 20 20 20 26 26 26 26 26 26 26 26 26 26 32 32 Average Carried 20 | 1 4 5 6 11 15 14 17 20 20 19 18 17 20 25 25 23 24 25 25 25 24 25 27 24 Final Capacity 32 | 6 6 6 8 20 16 16 20 20 20 20 18 20 26 26 26 26 26 26 26 26 26 26 32 4 Final Carried 32 | 4 6 6 8 15 16 14 20 20 20 20 17 20 26 26 25 24 26 25 26 26 25 26 32 4 Class Distribution -------------------- 25% | Hauler-Skirmisher 16% | Hauler-Mutant 16% | Scavenger-Skirmisher 8% | Skirmisher 7% | Assassin 7% | Mutant 5% | Hauler-Assassin 5% | Scavenger-Mutant 4% | Commander-Skirmisher Dominant Class ---------------- Mutant | -10/Materials Mutant | -10/Mines Mutant | -10/Exiles Assassin | -9/Mines Skirmisher | -8/Materials Skirmisher | -8/Garrison Hauler-Assassin | -7/Factory Hauler-Skirmisher | -7/Garrison Hauler-Skirmisher | -7/Factory Hauler-Skirmisher | -7/Garrison Skirmisher | -6/Factory Commander-Skirmisher | -6/Extension Hauler-Skirmisher | -6/Cetus Scavenger-Skirmisher | -5/Factory Hauler-Skirmisher | -5/Upper Caves Hauler-Skirmisher | -5/Upper Caves Scavenger-Skirmisher | -4/Factory Hauler-Skirmisher | -4/Upper Caves Hauler-Mutant | -4/Upper Caves Hauler-Mutant | -4/Zhirov Scavenger-Mutant | -3/Proximity Caves Hauler-Skirmisher | -3/Research Hauler-Skirmisher | -3/Garrison Hauler-Mutant | -3/Quarantine Resources | -11 -10 -10 -10 -9 -8 -8 -7 -7 -7 -7 -6 -6 -6 -5 -5 -5 -4 -4 -4 -4 -3 -3 -3 -3 ----------- Run | Scr Mat Min Exi Min Mat Gar Fac Gar Fac Gar Fac Ext Cet Fac Upp Upp Fac Upp Upp Zhi Pro Res Gar Qua Matter Collected 13226 | 300 94 22 . 297 807 263 621 337 . 631 581 428 380 1457 405 473 1070 201 100 . 307 2658 1206 588 Remotely 6043 | . . . . . 376 81 314 . . 221 67 . 130 492 358 215 465 201 44 . 265 1715 779 320 Salvage Created 17395 | 186 198 . . 171 918 390 767 468 . 584 573 580 401 2164 407 460 1313 166 49 . 254 4119 1540 1687 Parts 877 | 11 13 . . 14 40 13 37 21 . 33 16 28 26 87 23 17 57 10 6 . 20 268 77 60 Haulers Intercepted 8 | . . . . . . . . . . . 2 . . 2 . . 1 . . . . 3 . . Recyclers Shooed 17 | . . . . . 1 . . . . . 2 2 . 6 . . 1 . . . . 5 . . Parts Field Recycled . | . . . . . . . . . . . . . . . . . . . . . . . . . Retrieved Matter . | . . . . . . . . . . . . . . . . . . . . . . . . . Parts Self-Destructed 55 | . . . . . . . . . . . . . . . 23 5 . 10 4 . 13 . . . Prevented . | . . . . . . . . . . . . . . . . . . . . . . . . . Kills | -11 -10 -10 -10 -9 -8 -8 -7 -7 -7 -7 -6 -6 -6 -5 -5 -5 -4 -4 -4 -4 -3 -3 -3 -3 ------- Run | Scr Mat Min Exi Min Mat Gar Fac Gar Fac Gar Fac Ext Cet Fac Upp Upp Fac Upp Upp Zhi Pro Res Gar Qua Combat Hostiles Destroyed 255 | . 4 . . 3 14 13 12 11 . 24 3 6 6 20 7 5 16 3 4 . 7 39 17 41 Guns 142 | . 4 . . . 8 2 8 5 . 6 1 1 2 17 6 4 12 3 1 . 2 39 17 4 Cannons 24 | . . . . . 6 3 3 1 . 2 1 1 2 3 . 1 . . . . . . . 1 AOE 80 | . . . . 3 . 8 1 4 . 16 . 1 1 . 1 . 4 . 3 . 5 . . 33 Classes Destroyed 19 | 2 3 . . 2 2 . 2 . . . 2 1 . 1 . 1 . . . . . . . 3 Worker 17 | . . . . 1 . . 1 . . . . 1 . 1 . . . . . . . 13 . . Builder 18 | . 1 . . 1 1 . 3 . . . . 1 . 3 . . 3 . . . . 5 . . Tunneler 7 | 5 . . . 1 . . . . . . . 1 . . . . . . . . . . . . Hauler 8 | . . . . . . . . . . . 2 . . 2 . . 1 . . . . 3 . . Recycler 15 | 1 . . . 1 1 . 2 . . . 1 1 . 3 . . 3 . . . . 2 . . Mechanic 2 | . . . . . . . . . . . 1 . . . . . . . . . . . . 1 Watcher 20 | . 1 . . . 1 . 4 . . . . . . 4 . . 2 . . . . 6 . 2 Swarmer 47 | . . . . 3 . 3 4 4 . 12 . . 1 1 . 2 5 . 4 . 5 3 . . Saboteur 3 | . . . . . . . . . . . . . . . . . . . . . . . . 3 Grunt 92 | . 4 . . . 7 9 4 3 . 8 . 1 . 4 3 . 7 . . . . 10 13 19 Brawler 6 | . . . . . . . . . . . . . . 1 . . . . . . . . . 5 Duelist 11 | . . . . . . . 1 1 . 1 . . . 1 . . . . . . . . . 7 Protector 3 | . . . . . . . . . . . . . . . . . . . . . . . . 3 Sentry 31 | . . . . . 6 1 1 1 . 3 1 3 . 7 1 1 2 . . . . 1 3 . Hunter 20 | . . . . . 1 . 1 2 . . 1 . 1 . 3 1 . . . . 2 6 . 2 Programmer 34 | . . . . . . . 1 . . . 1 . . 6 . . 2 3 . . . 19 . 2 Behemoth 3 | . . . . . . . . . . . . 2 . . . . . . . . . . 1 . Cetus Guard 4 | . . . . . . . . . . . . . 4 . . . . . . . . . . . Investigator 1 | . . . . . . . . . . . . . . . . . . . . . . . . 1 Savage 3 | . . . . . . . . . . . . . . . . 3 . . . . . . . . Mutant 1 | . . . . . . . . . . . . . . . . 1 . . . . . . . . Best Kill Streak 27 | 5 4 . . 3 5 11 9 5 . 14 2 4 3 6 3 2 7 2 4 . 5 9 5 27 Combat Bots Only 26 | . 2 . . 3 3 11 4 5 . 14 1 2 3 2 3 2 4 2 4 . 5 7 5 26 Max Kills in Single Turn 6 | 1 2 . . 2 2 3 6 4 . 3 1 2 1 2 1 1 3 1 3 . 3 3 1 6 Gunslinging 1 | . 1 . . . . . . . . . . . . . . . . . . . . 1 . . Exploded 6 | . . . . 2 . 3 1 4 . 3 . 1 1 . 1 . 2 . 3 . 3 . . 6 Melee . | . . . . . . . . . . . . . . . . . . . . . . . . . Uniques/NPCs Destroyed . | . . . . . . . . . . . . . . . . . . . . . . . . . Combat | -11 -10 -10 -10 -9 -8 -8 -7 -7 -7 -7 -6 -6 -6 -5 -5 -5 -4 -4 -4 -4 -3 -3 -3 -3 -------- Run | Scr Mat Min Exi Min Mat Gar Fac Gar Fac Gar Fac Ext Cet Fac Upp Upp Fac Upp Upp Zhi Pro Res Gar Qua Damage Taken 20094 | . 240 . . 81 690 362 575 312 . 826 799 638 263 1884 949 477 945 280 217 . 462 2930 2060 5104 Core 2318 | . 40 . . 6 83 25 72 53 . 113 68 111 35 178 45 79 74 19 . . 15 228 120 954 Absorbed by Shields 4716 | . . . . . . . . . . . . 17 80 77 . 19 298 44 79 . 167 1083 838 2014 Reduced by Siege Mode 593 | . . . . . . . . . . . . . . 29 46 . 12 12 . . 17 166 176 135 Core Remaining (%) 80 | 100 . . . 81 . 80 . . . 66 . . 74 . . 69 . . . . 90 . . . Volleys Fired 716 | 17 15 . . 7 36 18 32 20 . 39 21 28 18 80 20 30 53 14 5 . 6 145 79 33 Largest 3 | 2 2 . . 2 3 3 3 3 . 3 3 3 3 3 3 3 3 3 3 . 3 3 3 3 Hottest 178 | 40 40 . . 60 113 156 122 119 . 136 166 168 173 160 105 156 156 171 105 . 101 171 100 178 Shots Fired 1800 | 34 30 . . 11 107 38 93 53 . 73 56 69 50 206 50 69 132 40 10 . 14 387 223 55 Gun 1428 | 34 30 . . 9 72 16 80 35 . 45 35 21 23 165 45 57 116 34 6 . 12 353 223 17 Cannon 304 | . . . . . 35 15 13 16 . 15 21 46 25 41 3 12 14 6 1 . . 34 . 7 Launcher 64 | . . . . 2 . 7 . 2 . 13 . 2 2 . 2 . 2 . 3 . 2 . . 27 Special 4 | . . . . . . . . . . . . . . . . . . . . . . . . 4 Kinetic 1424 | 34 30 . . 5 72 16 80 35 . 45 35 21 23 165 45 57 116 34 6 . 12 353 223 17 Thermal 91 | . . . . . . . . . . . . . . 14 3 12 14 6 1 . . 34 . 7 Explosive 50 | . . . . 2 . 7 . 2 . 13 . 2 2 . 2 . 2 . 3 . 2 . . 13 Electromagnetic 231 | . . . . 4 35 15 13 16 . 15 21 46 25 27 . . . . . . . . . 14 Robot Hit Streak 46 | 7 11 . . 9 15 11 17 16 . 14 7 15 15 19 10 18 18 15 3 . 17 46 37 25 Robot Miss Streak 5 | 1 3 . . 1 4 1 5 2 . 5 3 2 4 3 1 3 4 2 2 . . 4 2 3 Penetration Max 1 | . . . . . . . . . . . . . . 1 . . 1 . . . . 1 1 1 Secondary Targets 26 | . 2 . . . . . . . . . . . . 1 2 1 3 . . . 1 12 4 . Max Gunslinging Chain 1 | . 1 . . . . . . . . . . . . 1 1 1 1 . . . 1 1 1 . Shots Hit Robots 1245 | 25 21 . . 12 67 24 64 40 . 40 42 58 41 142 37 37 76 19 4 . 14 266 182 34 Core Hits 841 | 8 13 . . 8 28 25 48 19 . 53 27 29 44 64 19 14 49 6 4 . 14 135 58 176 Critical Hits 118 | 1 . . . . 2 . . . . . . . 2 22 3 8 10 4 . . 1 45 20 . Critical Kills 39 | 1 . . . . 2 . . . . . . . 2 6 2 4 2 . . . 1 16 3 . Critical Parts Destroyed 70 | . . . . . . . . . . . . . . 15 1 4 6 4 . . . 29 11 . Melee Attacks 67 | . . 13 . 6 12 . 22 . . . 2 3 . 9 . . . . . . . . . . Impact . | . . . . . . . . . . . . . . . . . . . . . . . . . Slashing 67 | . . 13 . 6 12 . 22 . . . 2 3 . 9 . . . . . . . . . . Piercing . | . . . . . . . . . . . . . . . . . . . . . . . . . Sneak Attacks 8 | . . . . 3 1 . 2 . . . . . . 2 . . . . . . . . . . Combat Hostiles . | . . . . . . . . . . . . . . . . . . . . . . . . . Follow-up Attacks . | . . . . . . . . . . . . . . . . . . . . . . . . . Damage Inflicted 48923 | 230 251 . . 561 1425 1329 2106 1056 . 2712 1046 1580 1292 4945 903 893 3224 523 323 . 650 8463 4658 10753 Guns 25113 | 230 214 . . 96 591 106 708 355 . 506 451 345 414 3892 640 825 1869 523 77 . 222 8047 4658 344 Cannons 4709 | . . . . . 671 262 340 406 . 280 443 857 480 708 . 68 . . . . . 90 . 104 Explosions 17870 | . 37 . . 147 . 961 857 295 . 1926 152 350 398 65 263 . 1305 . 246 . 428 135 . 10305 Melee 878 | . . . . 315 142 . 197 . . . . . . 224 . . . . . . . . . . Ramming 353 | . . . . 3 21 . 4 . . . . 28 . 56 . . 50 . . . . 191 . . Kinetic 25069 | 230 214 . . 52 591 106 708 355 . 506 451 345 414 3892 640 825 1869 523 77 . 222 8047 4658 344 Thermal 2512 | . . . . . . . 857 . . . . 167 223 136 . 68 . . . . . 90 . 971 Explosive 13647 | . 37 . . 147 . 961 . 295 . 1926 152 183 175 . 263 . 1305 . 246 . 428 135 . 7394 Electromagnetic 6464 | . . . . 44 671 262 340 406 . 280 443 857 480 637 . . . . . . . . . 2044 Impact . | . . . . . . . . . . . . . . . . . . . . . . . . . Slashing 878 | . . . . 315 142 . 197 . . . . . . 224 . . . . . . . . . . Piercing . | . . . . . . . . . . . . . . . . . . . . . . . . . Highest Corruption 38 | . . . . . . . 1 . . . 5 4 . 2 . . 3 2 2 2 2 16 16 38 Average Corruption 7 | . . . . . . . 1 . . . 3 3 . 1 . . 2 1 2 2 1 10 16 25 Corruption Purged 20 | . . . . . . . 1 . . . 1 4 . 4 . . 1 2 . . 2 5 . . Effects 286 | . . . . . . . . . . . 12 16 . 8 . . 4 6 4 3 3 117 74 39 Message Errors 38 | . . . . . . . . . . . 2 6 . 2 . . . 2 1 2 1 14 7 1 Matter Fused 35 | . . . . . . . . . . . 1 3 . . . . 1 . . . . 16 9 5 Heat Flow Errors 23 | . . . . . . . . . . . 2 2 . 2 . . . 3 . . . 9 5 . Energy Discharges 29 | . . . . . . . . . . . 4 2 . 2 . . . . . 1 . 16 2 2 Parts Rejected 2 | . . . . . . . . . . . . . . . . . . . . . . 2 . . Data Loss (minor) 27 | . . . . . . . . . . . . 3 . . . . 1 1 2 . . 9 5 6 Data Loss (major) 2 | . . . . . . . . . . . 1 . . . . . . . . . . 1 . . Misfires 10 | . . . . . . . . . . . 1 . . . . . . . . . . 8 1 . Alerts 4 | . . . . . . . . . . . . . . . . . . . . . . 2 2 . Misdirections 19 | . . . . . . . . . . . . . . . . . . . . . . 10 5 4 Targeting Errors 87 | . . . . . . . . . . . 1 . . 2 . . 2 . 1 . 2 27 31 21 Weapon Failures 10 | . . . . . . . . . . . . . . . . . . . . . . 3 7 . Overload Shots . | . . . . . . . . . . . . . . . . . . . . . . . . . Overflow Damage 1374 | . . . . 3 110 15 319 13 . 59 156 11 . 88 . 18 35 . . . . 41 . 506 Projectiles 68 | . . . . . 36 11 . . . . . 2 . 1 . 18 . . . . . . . . Explosions 966 | . . . . 3 . 4 177 13 . 59 156 9 . . . . 35 . . . . 4 . 506 Melee 340 | . . . . . 74 . 142 . . . . . . 87 . . . . . . . 37 . . Knockbacks 3 | . . . . . . . . . . . . 1 . . . . . . . . . 2 . . Impact 3 | . . . . . . . . . . . . 1 . . . . . . . . . 2 . . Kinetic . | . . . . . . . . . . . . . . . . . . . . . . . . . Secondary . | . . . . . . . . . . . . . . . . . . . . . . . . . Self-Inflicted Damage 1111 | . 71 . . . . 22 91 . . 19 268 . . . . . 182 . . . 3 . . 455 Shots 29 | . 1 . . . . 1 2 . . 1 3 . . . . . 2 . . . 1 . . 18 Rammed 16 | . . . . . 3 . . . . . . 1 . 2 . . 2 . . . . 8 . . Targets Rammed 21 | . . . . 1 3 . 1 . . . . 1 . 3 . . 2 . . . . 10 . . Kicked . | . . . . . . . . . . . . . . . . . . . . . . . . . Crushed 5 | . . . . 1 . . 1 . . . . . . 1 . . . . . . . 2 . . Highest Temperature 472 | . 18 . . 58 472 325 340 318 . 242 282 204 272 363 260 202 405 276 96 . 8 289 301 15 Average Temperature 80 | . 9 . . 33 128 136 107 111 . 59 86 63 109 112 90 65 56 95 39 . 3 24 41 9 Received Heat Transfer 2544 | . 93 . . 18 270 171 48 72 . 114 18 166 . 231 96 15 119 . . . . 268 315 530 Effects 18 | . . . . . 4 1 4 . . . . . 1 7 . . . 1 . . . . . . Shutdowns 2 | . . . . . 1 . . . . . . . . 1 . . . . . . . . . . Energy Bleed 5 | . . . . . 1 1 1 . . . . . . 1 . . . 1 . . . . . . Interference 10 | . . . . . 2 . 3 . . . . . 1 4 . . . . . . . . . . Damage (minor) 1 | . . . . . . . . . . . . . . 1 . . . . . . . . . . Siege Activations 36 | . . . . . . . . . . . . . . 4 3 1 5 2 . . 2 14 4 1 Total Turns 468 | . . . . . . . . . . . . . . 54 28 6 35 19 . . 14 174 107 31 Longest Duration 41 | . . . . . . . . . . . . . . 20 15 6 11 13 . . 12 25 41 31 Robots Corrupted 9 | . . . . . . . . 1 . . 1 3 1 . . . . . . . . . . 3 Combat Hostiles 9 | . . . . . . . . 1 . . 1 3 1 . . . . . . . . . . 3 Parts Fried 43 | . . . . . 4 1 5 4 . 1 7 8 1 3 . . . . . . . 1 . 8 Impact Corruptions 4 | . . . . . . . . . . . . . . 1 . . . . . . . 3 . . Robots Melted . | . . . . . . . . . . . . . . . . . . . . . . . . . Combat Hostiles . | . . . . . . . . . . . . . . . . . . . . . . . . . Parts Melted 2 | . . . . . . . . . . . . 1 . . . . . . . . . 1 . . Heat Transferred 2013 | . . . . . . . 650 . . . . 100 150 150 . 100 . . . . . 74 . 789 Parts Sabotaged 5 | . . . . . . . . . . . . . . . . . . . . . . . . 5 Parts Stolen . | . . . . . . . . . . . . . . . . . . . . . . . . . Parts Stripped . | . . . . . . . . . . . . . . . . . . . . . . . . . Power Chain Reactions 9 | . . . . . . . 2 . . . . 1 1 1 . . . . . . . . . 4 Missiles Intercepted . | . . . . . . . . . . . . . . . . . . . . . . . . . Alert | -11 -10 -10 -10 -9 -8 -8 -7 -7 -7 -7 -6 -6 -6 -5 -5 -5 -4 -4 -4 -4 -3 -3 -3 -3 ------- Run | Scr Mat Min Exi Min Mat Gar Fac Gar Fac Gar Fac Ext Cet Fac Upp Upp Fac Upp Upp Zhi Pro Res Gar Qua Peak Influence 2354 | 30 222 86 . 95 417 581 637 578 303 657 559 347 397 513 . . 542 . . . . 632 839 2354 Initial 474 | . 19 86 . . 37 271 304 367 303 212 344 116 111 221 . . . . . . . 81 474 471 Average 339 | 13 121 86 . 9 199 435 348 517 303 540 369 139 279 318 . . 335 . . . . 305 699 1860 Maximum Alert Level 5 | . 1 . . . 2 2 2 2 1 2 2 1 1 2 . . 2 . . . . 2 3 5 Low Security (%) 29 | 100 77 100 . 100 46 . 4 . . . . 84 30 13 . . 24 . . . . 26 . . Level 1 37 | . 22 . . . 47 46 66 11 100 20 64 15 69 49 . . 21 . . . . 53 . . Level 2 27 | . . . . . 6 53 28 88 . 79 35 . . 36 . . 54 . . . . 20 44 . Level 3 2 | . . . . . . . . . . . . . . . . . . . . . . . 55 . Level 4 . | . . . . . . . . . . . . . . . . . . . . . . . . . Level 5 . | . . . . . . . . . . . . . . . . . . . . . . . . . High Security . | . . . . . . . . . . . . . . . . . . . . . . . . . Max Security 2 | . . . . . . . . . . . . . . . . . . . . . . . . 99 Squads Dispatched 44 | . 1 . . 1 4 . 6 . . . 2 3 . 3 . . 3 . . . . 9 . 12 Investigation 13 | . . . . 1 2 . 4 . . . 1 3 . . . . 2 . . . . . . . Extermination 13 | . . . . . . . 1 . . . 1 . . 3 . . 1 . . . . 7 . . Reinforcement 3 | . 1 . . . . . 1 . . . . . . . . . . . . . . 1 . . Assault 13 | . . . . . . . . . . . . . . . . . . . . . . 1 . 12 Garrison 2 | . . . . . 2 . . . . . . . . . . . . . . . . . . . Intercept . | . . . . . . . . . . . . . . . . . . . . . . . . . Construction Impeded . | . . . . . . . . . . . . . . . . . . . . . . . . . Haulers Reinforced . | . . . . . . . . . . . . . . . . . . . . . . . . . Stealth | -11 -10 -10 -10 -9 -8 -8 -7 -7 -7 -7 -6 -6 -6 -5 -5 -5 -4 -4 -4 -4 -3 -3 -3 -3 --------- Run | Scr Mat Min Exi Min Mat Gar Fac Gar Fac Gar Fac Ext Cet Fac Upp Upp Fac Upp Upp Zhi Pro Res Gar Qua Distress Signals 12 | . . 1 . . 2 . 2 . . . . 2 2 . . . . . . . . 2 . 1 Communications Jammed 288 | . . . . . 5 . . . . . . . . 17 . . 11 . . . . 124 . 131 Distress Signals 283 | . . . . . 5 . . . . . . . . 14 . . 11 . . . . 122 . 131 Times Spotted 408 | . 10 . . 5 30 16 21 7 . 20 4 20 14 34 7 8 23 3 5 . 7 64 20 90 Peak Tracking Total 29 | . 4 . . 3 5 8 5 4 . 6 2 4 5 4 3 3 5 2 5 . 5 6 5 29 Tactical Retreats 23 | . . . . . . 2 1 . . 1 . . . 2 . 3 4 . 1 . . 4 2 3 Traps | -11 -10 -10 -10 -9 -8 -8 -7 -7 -7 -7 -6 -6 -6 -5 -5 -5 -4 -4 -4 -4 -3 -3 -3 -3 ------- Run | Scr Mat Min Exi Min Mat Gar Fac Gar Fac Gar Fac Ext Cet Fac Upp Upp Fac Upp Upp Zhi Pro Res Gar Qua Traps Triggered 10 | . . . . . 1 . 1 . . 2 1 1 . 2 . . . . . . . 1 1 . Indirectly . | . . . . . . . . . . . . . . . . . . . . . . . . . Trap Hack Attempts . | . . . . . . . . . . . . . . . . . . . . . . . . . Triggered . | . . . . . . . . . . . . . . . . . . . . . . . . . Disarmed . | . . . . . . . . . . . . . . . . . . . . . . . . . Reprogrammed . | . . . . . . . . . . . . . . . . . . . . . . . . . Reused . | . . . . . . . . . . . . . . . . . . . . . . . . . Traps Extracted . | . . . . . . . . . . . . . . . . . . . . . . . . . Installed . | . . . . . . . . . . . . . . . . . . . . . . . . . Triggered 2 | . . . . . 1 . . . . . . . . . . . . 1 . . . . . . Machines | -11 -10 -10 -10 -9 -8 -8 -7 -7 -7 -7 -6 -6 -6 -5 -5 -5 -4 -4 -4 -4 -3 -3 -3 -3 ---------- Run | Scr Mat Min Exi Min Mat Gar Fac Gar Fac Gar Fac Ext Cet Fac Upp Upp Fac Upp Upp Zhi Pro Res Gar Qua Machines Disabled 40 | . 1 . . . . . 4 . . . 6 2 3 7 . 1 9 . . . . 2 2 3 Max in Single Turn 6 | . 1 . . . . . 4 . . . 2 1 1 6 . 1 2 . . . . 1 1 2 Garrison Access 5 | . . . . . . . 1 . . . 1 . . 3 . . . . . . . . . . Garrison Relay 2 | . . . . . . . . . . . . . . . . . . . . . . . 2 . Machines Sabotaged . | . . . . . . . . . . . . . . . . . . . . . . . . . Garrisons Compromised . | . . . . . . . . . . . . . . . . . . . . . . . . . Overloaded Fab Kills 2 | . . . . . . . 2 . . . . . . . . . . . . . . . . . Fab Network Shutdowns . | . . . . . . . . . . . . . . . . . . . . . . . . . Hacking | -11 -10 -10 -10 -9 -8 -8 -7 -7 -7 -7 -6 -6 -6 -5 -5 -5 -4 -4 -4 -4 -3 -3 -3 -3 --------- Run | Scr Mat Min Exi Min Mat Gar Fac Gar Fac Gar Fac Ext Cet Fac Upp Upp Fac Upp Upp Zhi Pro Res Gar Qua Machines Accessed 55 | . 4 . 1 . 4 . 9 . 1 . 5 5 . 9 . . 6 1 1 4 . 5 . . Terminals 36 | . 4 . . . 3 . 6 . . . 4 5 . 6 . . 4 . . . . 4 . . Fabricators 2 | . . . . . . . 1 . . . . . . . . . 1 . . . . . . . Repair Stations 1 | . . . . . . . . . . . . . . . . . 1 . . . . . . . Recycling Units . | . . . . . . . . . . . . . . . . . . . . . . . . . Scanalyzers . | . . . . . . . . . . . . . . . . . . . . . . . . . Garrison Access 9 | . . . . . 1 . 2 . 1 . 1 . . 3 . . . . . . . 1 . . Total Hacks 130 | . 18 . 1 . 9 . 19 . 1 . 10 11 . 16 . . 16 1 1 17 . 10 . . Successful 73 | . 11 . 1 . 5 . 5 . 1 . 6 6 . 9 . . 9 1 1 17 . 1 . . Failed 56 | . 6 . . . 4 . 14 . . . 4 5 . 7 . . 7 . . . . 9 . . Catastrophic 12 | . 1 . . . . . 4 . . . 2 1 . 1 . . 1 . . . . 2 . . Database Lockouts 1 | . 1 . . . . . . . . . . . . . . . . . . . . . . . Manual 60 | . 12 . 1 . 6 . 11 . . . 6 4 . 3 . . 12 . . . . 5 . . Terminals 95 | . 18 . . . 8 . 16 . . . 9 11 . 13 . . 11 . . . . 9 . . Fabricators 4 | . . . . . . . 1 . . . . . . . . . 3 . . . . . . . Repair Stations 2 | . . . . . . . . . . . . . . . . . 2 . . . . . . . Recycling Units . | . . . . . . . . . . . . . . . . . . . . . . . . . Scanalyzers . | . . . . . . . . . . . . . . . . . . . . . . . . . Garrison Access 9 | . . . . . 1 . 2 . 1 . 1 . . 3 . . . . . . . 1 . . Terminal Hacks 42 | . 6 . 1 . 2 . 1 . . . 2 5 . 4 . . 2 1 1 17 . . . . Record 5 | . . . . . . . . . . . . . . . . . . . . 5 . . . . Part Schematic 7 | . 1 . . . 1 . . . . . . . . . . . 1 . . 4 . . . . Robot Analysis 6 | . 2 . . . . . . . . . . . . . . . . . . 4 . . . . Prototype ID Bank 4 | . . . . . . . . . . . . . . . . . . . . 4 . . . . Open Door 5 | . . . . . . . . . . . . 3 . . . . . 1 1 . . . . . Level Access Points 1 | . . . . . . . . . . . . . . 1 . . . . . . . . . . Branch Access Points 1 | . . . . . . . . . . . . . . . . . 1 . . . . . . . Terminal Index 2 | . 1 . . . . . 1 . . . . . . . . . . . . . . . . . Unreport Threat 2 | . . . . . . . . . . . . 1 . 1 . . . . . . . . . . Locate Traps 5 | . 1 . . . . . . . . . 1 1 . 2 . . . . . . . . . . Registered Components 1 | . . . . . . . . . . . 1 . . . . . . . . . . . . . Zone Layout 2 | . 1 . . . 1 . . . . . . . . . . . . . . . . . . . EX-Prototype ID Bank 1 | . . . 1 . . . . . . . . . . . . . . . . . . . . . Fabricator Hacks 2 | . . . . . . . . . . . . . . . . . 2 . . . . . . . Load Schematic 1 | . . . . . . . . . . . . . . . . . 1 . . . . . . . Build 1 | . . . . . . . . . . . . . . . . . 1 . . . . . . . Repair Station Hacks 2 | . . . . . . . . . . . . . . . . . 2 . . . . . . . Scan Component 1 | . . . . . . . . . . . . . . . . . 1 . . . . . . . Repair 1 | . . . . . . . . . . . . . . . . . 1 . . . . . . . Recycling Unit Hacks . | . . . . . . . . . . . . . . . . . . . . . . . . . Scanalyzer . | . . . . . . . . . . . . . . . . . . . . . . . . . Garrison Access Hacks 9 | . . . . . 1 . 2 . 1 . 1 . . 3 . . . . . . . 1 . . Unlock Access 4 | . . . . . 1 . 1 . 1 . . . . . . . . . . . . 1 . . Seal Access 5 | . . . . . . . 1 . . . 1 . . 3 . . . . . . . . . . Unauthorized Hacks 18 | . 5 . . . 2 . 2 . . . 3 1 . 2 . . 3 . . . . . . . Terminals 16 | . 5 . . . 2 . 1 . . . 3 1 . 2 . . 2 . . . . . . . Track 2 | . 2 . . . . . . . . . . . . . . . . . . . . . . . Botnet 13 | . 2 . . . 2 . 1 . . . 3 1 . 2 . . 2 . . . . . . . Operators 1 | . 1 . . . . . . . . . . . . . . . . . . . . . . . Fabricators 2 | . . . . . . . 1 . . . . . . . . . 1 . . . . . . . Prioritize 1 | . . . . . . . . . . . . . . . . . 1 . . . . . . . Overload 1 | . . . . . . . 1 . . . . . . . . . . . . . . . . . Repair Stations . | . . . . . . . . . . . . . . . . . . . . . . . . . Recycling Units . | . . . . . . . . . . . . . . . . . . . . . . . . . Scanalyzers . | . . . . . . . . . . . . . . . . . . . . . . . . . Garrison Access . | . . . . . . . . . . . . . . . . . . . . . . . . . Data Cores Recovered . | . . . . . . . . . . . . . . . . . . . . . . . . . Used . | . . . . . . . . . . . . . . . . . . . . . . . . . Hacking Detections 34 | . 4 . . . 3 . 6 . . . 4 3 . 6 . . 4 . . . . 4 . . Full Trace Events 7 | . . . . . . . 2 . . . 1 2 . . . . 2 . . . . . . . Feedback Events 1 | . . . . . . . 1 . . . . . . . . . . . . . . . . . Corruption 1 | . . . . . . . 1 . . . . . . . . . . . . . . . . . Feedback Blocked . | . . . . . . . . . . . . . . . . . . . . . . . . . Robot Schematics Acquired . | . . . . . . . . . . . . . . . . . . . . . . . . . Robots Built . | . . . . . . . . . . . . . . . . . . . . . . . . . Matter . | . . . . . . . . . . . . . . . . . . . . . . . . . Time . | . . . . . . . . . . . . . . . . . . . . . . . . . Total Robot Build Rating . | . . . . . . . . . . . . . . . . . . . . . . . . . Part Schematics Acquired 6 | . 1 . . . . . . . . . . . . . . . 1 . . 4 . . . . Parts Built 2 | . . . . . . . . . . . . . . . . . 2 . . . . . . . Matter 212 | . . . . . . . . . . . . . . . . . 212 . . . . . . . Time 106 | . . . . . . . . . . . . . . . . . 106 . . . . . . . Total Part Build Rating 12 | . . . . . . . . . . . . . . . . . 12 . . . . . . . Parts Repaired 1 | . . . . . . . . . . . . . . . . . 1 . . . . . . . Time 49 | . . . . . . . . . . . . . . . . . 49 . . . . . . . Parts Recycled . | . . . . . . . . . . . . . . . . . . . . . . . . . Recycled Matter . | . . . . . . . . . . . . . . . . . . . . . . . . . Retrieved Matter . | . . . . . . . . . . . . . . . . . . . . . . . . . Retrieved Components . | . . . . . . . . . . . . . . . . . . . . . . . . . Parts Scanalyzed . | . . . . . . . . . . . . . . . . . . . . . . . . . Part Schematics Acquired . | . . . . . . . . . . . . . . . . . . . . . . . . . Parts Damaged . | . . . . . . . . . . . . . . . . . . . . . . . . . Bothacking | -11 -10 -10 -10 -9 -8 -8 -7 -7 -7 -7 -6 -6 -6 -5 -5 -5 -4 -4 -4 -4 -3 -3 -3 -3 ------------ Run | Scr Mat Min Exi Min Mat Gar Fac Gar Fac Gar Fac Ext Cet Fac Upp Upp Fac Upp Upp Zhi Pro Res Gar Qua Used RIF Installer 4 | . . . . . . 1 . 1 . 1 . . . . . . . . . . . . 1 . Threat Obfuscator 1 | . . . . . . . . 1 . . . . . . . . . . . . . . . . Watcher Feeds 1 | . . . . . . . . . . 1 . . . . . . . . . . . . . . Autoassimilate 1 | . . . . . . . . . . . . . . . . . . . . . . . 1 . Robots Hacked 4 | . . . . . . . . . . . . . . . . . . . . . . . . 4 Non-combat . | . . . . . . . . . . . . . . . . . . . . . . . . . Combat 4 | . . . . . . . . . . . . . . . . . . . . . . . . 4 Autoassimilated 1 | . . . . . . . . . . . . . . . . . . . . . . . . 1 Robot Hacks Applied 3 | . . . . . . . . . . . . . . . . . . . . . . . . 3 overload_power 1 | . . . . . . . . . . . . . . . . . . . . . . . . 1 overwrite_iff 2 | . . . . . . . . . . . . . . . . . . . . . . . . 2 Relay Couplers Released 7 | . . . . . . . . . . . . . . . . . . . . . . . 7 . Machine Destruction 7 | . . . . . . . . . . . . . . . . . . . . . . . 7 . Attached 2 | . . . . . . . . . . . . . . . . . . . . . . . . 2 Robots Rewired 7 | . . . . . . . . . . . . 7 . . . . . . . . . . . . Allies Hacked . | . . . . . . . . . . . . . . . . . . . . . . . . . Hacks Repelled . | . . . . . . . . . . . . . . . . . . . . . . . . . Allies | -11 -10 -10 -10 -9 -8 -8 -7 -7 -7 -7 -6 -6 -6 -5 -5 -5 -4 -4 -4 -4 -3 -3 -3 -3 -------- Run | Scr Mat Min Exi Min Mat Gar Fac Gar Fac Gar Fac Ext Cet Fac Upp Upp Fac Upp Upp Zhi Pro Res Gar Qua Total Allies 14 | . . . . . . . . . . . . 11 . . . . . . . . . . . 3 Largest Group 10 | . . . . . . . . . . . . 10 6 1 . . . . . . . . . 2 Highest-Rated Group 426 | . . . . . . . . . . . . 426 301 128 . . . . . . . . . 112 Highest-Rated Ally 156 | . . . . . . . . . . . . 156 156 128 . . . . . . . . . 56 Total Orders 8 | . . . . . . . . . . . 2 . 6 . . . . . . . . . . . STAY 4 | . . . . . . . . . . . . . 4 . . . . . . . . . . . FOLLOW 2 | . . . . . . . . . . . . . 2 . . . . . . . . . . . EXPLORE 2 | . . . . . . . . . . . 2 . . . . . . . . . . . . . Ally Attacks 162 | . . . . . . . . . . . . 121 35 . . . . . . . . . . 6 Total Damage 3404 | . . . . . . . . . . . . 2254 878 . . . . . . . . . . 272 Kills 24 | . . . . . . . . . . . . 16 8 . . . . . . . . . . . Allies Corrupted . | . . . . . . . . . . . . . . . . . . . . . . . . . Allies Melted . | . . . . . . . . . . . . . . . . . . . . . . . . . Intel | -11 -10 -10 -10 -9 -8 -8 -7 -7 -7 -7 -6 -6 -6 -5 -5 -5 -4 -4 -4 -4 -3 -3 -3 -3 ------- Run | Scr Mat Min Exi Min Mat Gar Fac Gar Fac Gar Fac Ext Cet Fac Upp Upp Fac Upp Upp Zhi Pro Res Gar Qua Robot Analysis Total 6 | . 2 . . . . . . . . . . . . . . . . . . 4 . . . . Derelict Logs Recovered 9 | . . . . 2 . . . . . . . . . . 1 2 . 1 3 . . . . . Drone Launches 2 | . . . . . . . . . . . 2 . . . . . . . . . . . . . Drone Recoveries . | . . . . . . . . . . . . . . . . . . . . . . . . . Exploration | -11 -10 -10 -10 -9 -8 -8 -7 -7 -7 -7 -6 -6 -6 -5 -5 -5 -4 -4 -4 -4 -3 -3 -3 -3 ------------- Run | Scr Mat Min Exi Min Mat Gar Fac Gar Fac Gar Fac Ext Cet Fac Upp Upp Fac Upp Upp Zhi Pro Res Gar Qua Turns Passed 16927 | 155 344 237 427 795 796 226 1223 381 66 537 972 1038 281 1749 601 1001 1049 421 499 232 336 2596 677 288 Spaces Moved 8622 | 60 185 131 264 450 376 106 699 203 44 262 526 550 116 829 315 536 510 224 296 132 188 1251 273 96 Core 2 | 2 . . . . . . . . . . . . . . . . . . . . . . . . Treads 8620 | 58 185 131 264 450 376 106 699 203 44 262 526 550 116 829 315 536 510 224 296 132 188 1251 273 96 Legs . | . . . . . . . . . . . . . . . . . . . . . . . . . Wheels . | . . . . . . . . . . . . . . . . . . . . . . . . . Hover . | . . . . . . . . . . . . . . . . . . . . . . . . . Flight . | . . . . . . . . . . . . . . . . . . . . . . . . . Fastest Speed 50 | 50 160 160 160 160 145 145 145 148 152 152 148 156 155 155 163 160 160 162 162 162 162 152 152 158 Average Speed 158 | 156 160 160 160 164 153 145 146 150 152 152 161 158 169 161 163 160 160 162 162 162 162 157 156 164 Slowest Speed 200 | 160 160 160 160 180 180 145 148 152 152 175 175 176 175 163 163 163 162 162 162 162 162 180 158 200 Overloaded Moves . | . . . . . . . . . . . . . . . . . . . . . . . . . Propulsion Burnouts . | . . . . . . . . . . . . . . . . . . . . . . . . . Robots Hopped . | . . . . . . . . . . . . . . . . . . . . . . . . . Cave-ins Triggered . | . . . . . . . . . . . . . . . . . . . . . . . . . Exploration Rate (%) 46 | 6 45 44 68 89 52 35 32 57 3 47 21 69 68 44 70 77 19 46 64 57 56 43 43 19 Regions Visited 24 Branch Regions 12 Pre-discovered Areas 7 | . . . . 2 . . . . . . . . . . . 1 . . 1 3 . . . . Known Exits Taken 7 | . . . . . 1 . 1 . 1 . . . . . . 1 1 . . . 1 1 . . Unknown Exits Taken 13 | 1 1 1 1 1 . . . . . . 1 1 1 1 1 . . 1 1 1 . . . . Scrap Searched 15 | . . 1 . 1 . . . . . . . . . . 4 3 . . 3 . 3 . . . Spaces Dug 118 | . . . . 3 10 . 20 . . . 2 3 . 17 2 7 14 7 1 . . 31 . 1 Terrain Destroyed 1057 | . 19 . . 23 10 6 79 12 . 83 59 23 18 135 34 24 179 18 61 . 32 59 11 172 Melee 45 | . . . . 3 10 . 20 . . . 2 3 . 7 . . . . . . . . . . Projectile 257 | . . . . . . 1 . . . 1 . . . 66 17 24 57 18 3 . . 52 11 7 AOE 755 | . 19 . . 20 . 5 59 12 . 82 57 20 18 62 17 . 122 . 58 . 32 7 . 165 Terrain Rammed . | . . . . . . . . . . . . . . . . . . . . . . . . . Walls Destroyed . | . . . . . . . . . . . . . . . . . . . . . . . . . Machines Disabled . | . . . . . . . . . . . . . . . . . . . . . . . . . Actions | -11 -10 -10 -10 -9 -8 -8 -7 -7 -7 -7 -6 -6 -6 -5 -5 -5 -4 -4 -4 -4 -3 -3 -3 -3 --------- Run | Scr Mat Min Exi Min Mat Gar Fac Gar Fac Gar Fac Ext Cet Fac Upp Upp Fac Upp Upp Zhi Pro Res Gar Qua Total 10540 | 87 207 146 271 487 514 153 817 249 43 342 607 659 168 1064 358 619 626 248 306 150 207 1616 406 190 Wait 147 | . 1 . . 4 5 17 2 14 . 2 10 3 . 21 2 19 4 2 . . 2 29 10 . Move 8594 | 59 184 130 263 449 375 104 698 201 43 260 525 549 115 828 314 535 509 223 295 131 187 1250 271 96 Hop . | . . . . . . . . . . . . . . . . . . . . . . . . . Pick Up 148 | 4 3 1 4 8 12 . 14 . . 7 8 1 9 15 1 5 14 . 1 1 1 26 11 2 Fast Attach 66 | 7 1 . . 1 3 . 4 1 . 2 3 5 3 12 . 1 1 . . 7 . 12 2 1 Attach 94 | . 1 . . 1 4 2 6 . . 4 5 . 2 8 2 5 5 1 . 1 2 16 7 22 Detach 18 | . . . . 1 . . 2 . . . 2 1 1 3 . . 2 . . 1 . 2 2 1 Swap 469 | . . 1 1 7 44 11 27 12 . 22 20 28 13 61 19 21 29 8 5 2 9 98 20 11 Drop 143 | . 2 1 3 2 20 1 9 1 . 4 11 6 7 24 . 3 7 . . 7 . 28 4 3 Fire 716 | 17 15 . . 7 36 18 32 20 . 39 21 28 18 80 20 30 53 14 5 . 6 145 79 33 Melee 67 | . . 13 . 6 12 . 22 . . . 2 3 . 9 . . . . . . . . . . Ram . | . . . . . . . . . . . . . . . . . . . . . . . . . Kick . | . . . . . . . . . . . . . . . . . . . . . . . . . Crush 21 | . . . . 1 3 . 1 . . . . 1 . 3 . . 2 . . . . 10 . . Escape Stasis 25 | . . . . . . . . . . 2 . 2 . . . . . . . . . . . 21 Rewire 32 | . . . . . . . . . . . . 32 . . . . . . . . . . . . Trap . | . . . . . . . . . . . . . . . . . . . . . . . . . Miscellaneous . | . . . . . . . . . . . . . . . . . . . . . . . . . Route ------- -11/Scrapyard -10/Materials (discovered 2 exits: [*Mat] / [*Min]) -10/Mines -10/Exiles -9/Mines -8/Materials (discovered 3 exits: *Fac x2 / Gar) -8/Garrison -7/Factory (discovered 3 exits: *Fac / [Low] / Gar) -7/Garrison (discovered 2 exits: *Fac x2) -7/Factory -7/Garrison -6/Factory (discovered 2 exits: *Fac / *Ext) -6/Extension (discovered 2 exits: *Fac / [*Cet]) -6/Cetus (discovered 2 exits: *Fac / [*Arc]) -5/Factory (discovered 5 exits: *Fac x4 / [*Upp]) -5/Upper Caves -5/Upper Caves (discovered 2 exits: *Fac / *War) -4/Factory (discovered 4 exits: *Res x2 / *Upp x2) -4/Upper Caves -4/Upper Caves (discovered 2 exits: Res / *Zhi) -4/Zhirov -3/Proximity Caves -3/Research (discovered 4 exits: [*Res x2] / [Qua] / Gar) -3/Garrison -3/Quarantine History --------- Turn | Location | Event 32 | -11/Scrapyard | Discovered new exit (range 14) 156 | -11/Scrapyard | Entered Materials 208 | -10/Materials | Central database locked down 309 | -10/Materials | Build established: Mutant 373 | -10/Materials | Discovered new exit (range 15) 473 | -10/Materials | Discovered new exit (range 8) 500 | -10/Materials | Entered Mines 614 | -10/Mines | A weapon hastily lodged in a ceiling crevice suddenly fell to the ground 635 | -10/Mines | Excavation squad dispatched 635 | -10/Mines | A large section of the Mines collapsed 731 | -10/Mines | Deemed a non-threat by the Exiles lab entrance 731 | -10/Mines | Discovered new exit (range 5) 737 | -10/Mines | Entered Exiles 776 | -10/Exiles | Met 8R-AWN 805 | -10/Exiles | Met EX-HEX 848 | -10/Exiles | Met EX-BIN 865 | -10/Exiles | Aligned with FarCom system 867 | -10/Exiles | Given EX-Vault access code 904 | -10/Exiles | Opened EX-Vault 924 | -10/Exiles | Found Modified TNC 958 | -10/Exiles | Warned to stay clear of 0b10 Research branches 1061 | -10/Exiles | Met EX-DEC 1151 | -10/Exiles | Discovered new exit (range 10) 1164 | -10/Exiles | Left Exiles lab with Modified TNC 1164 | -10/Exiles | Entered Mines 1171 | -9/Mines | Learned location of Recycling (-7) 1219 | -9/Mines | Found a hidden stash of uninstalled traps 1247 | -9/Mines | Met a Derelict shopkeep closing up shop 1449 | -9/Mines | Build established: Assassin 1577 | -9/Mines | YI-UF0 nonchalantly dropped a Grenade Launcher on the ground 1680 | -9/Mines | Learned location of Zion (-7) 1829 | -9/Mines | Joined a pair of Derelicts in attacking an 0b10 outpost 1946 | -9/Mines | Discovered new exit (range 4) 1959 | -9/Mines | Entered Materials 1959 | -8/Materials | Evolved 4 slots: Propulsion x1, Utility x2, Weapon x1 2227 | -8/Materials | Discovered new exit (range 15) 2547 | -8/Materials | Discovered new exit (range 13) 2642 | -8/Materials | Garrison activated, responded to threat 2754 | -8/Materials | Identified exit to Garrison 2755 | -8/Materials | Entered Garrison 2828 | -8/Garrison | Triggered checkpoint 2856 | -8/Garrison | Triggered checkpoint 2867 | -8/Garrison | Triggered checkpoint 2911 | -8/Garrison | Destroyed 11 combat bots 2954 | -8/Garrison | Discovered new exit (range 10) 2974 | -8/Garrison | Installed Relay Interface Framework 2981 | -8/Garrison | Entered Factory 2981 | -7/Factory | Evolved 2 slots: Propulsion x1, Utility x1 3097 | -7/Factory | Build established: Skirmisher 3451 | -7/Factory | Discovered new exit (range 14) 3761 | -7/Factory | Build established: Hauler-Assassin 3922 | -7/Factory | Discovered new exit (range 13) 4202 | -7/Factory | Identified exit to Garrison 4204 | -7/Factory | Entered Garrison 4212 | -7/Garrison | Expanded RIF knowledge: Threat Obfuscation 4315 | -7/Garrison | Triggered checkpoint 4346 | -7/Garrison | Triggered checkpoint 4346 | -7/Garrison | Triggered checkpoint 4398 | -7/Garrison | Build established: Hauler-Skirmisher 4463 | -7/Garrison | Discovered new exit (range 13) 4518 | -7/Garrison | Triggered checkpoint 4567 | -7/Garrison | Discovered new exit (range 12) 4585 | -7/Garrison | Entered Factory 4649 | -7/Factory | Identified exit to Garrison 4651 | -7/Factory | Entered Garrison 4659 | -7/Garrison | Expanded RIF knowledge: Patrol Navigation 4724 | -7/Garrison | Triggered checkpoint 4793 | -7/Garrison | Destroyed 14 combat bots 4838 | -7/Garrison | Triggered checkpoint 4885 | -7/Garrison | Destroyed 7 combat bots 4900 | -7/Garrison | Triggered checkpoint 4977 | -7/Garrison | Discovered new exit (range 8) 5188 | -7/Garrison | Entered Factory 5188 | -6/Factory | Evolved 2 slots: Utility x2 5813 | -6/Factory | Discovered new exit (range 21) 5857 | -6/Factory | Discovered new exit (range 18) 6045 | -6/Factory | Build established: Skirmisher 6160 | -6/Factory | Entered Extension 6252 | -6/Extension | Rescued a captive Derelict 6253 | -6/Extension | Rescued a captive Derelict 6513 | -6/Extension | Rescued a captive Derelict 6625 | -6/Extension | Build established: Commander-Skirmisher 6635 | -6/Extension | Rescued A7 6836 | -6/Extension | Spotted B-75 Beast 6859 | -6/Extension | Destroyed B-75 Beast 6863 | -6/Extension | Spotted B-75 Beast 6879 | -6/Extension | Destroyed B-75 Beast 7164 | -6/Extension | Discovered new exit (range 21) 7166 | -6/Extension | Discovered new exit (range 20) 7198 | -6/Extension | Entered Cetus 7198 | -6/Cetus | Accompanied by 6 allies (A7) 7203 | -6/Cetus | Acquired a Cetus Manufacturing Module code from A7 7222 | -6/Cetus | Spotted Cetus Guard 7222 | -6/Cetus | Spotted Cetus Guard 7222 | -6/Cetus | Spotted Cetus Guard 7222 | -6/Cetus | Spotted Cetus Guard 7229 | -6/Cetus | Allies destroyed Cetus Guard 7233 | -6/Cetus | Allies destroyed Cetus Guard 7239 | -6/Cetus | Destroyed Cetus Guard 7244 | -6/Cetus | Allies destroyed Cetus Guard 7285 | -6/Cetus | Cetus Manufacturing Module disabled 7348 | -6/Cetus | Discovered new exit (range 22) 7383 | -6/Cetus | Spotted Cetus Guard 7383 | -6/Cetus | Spotted Cetus Guard 7383 | -6/Cetus | Spotted Cetus Guard 7389 | -6/Cetus | Destroyed Cetus Guard 7397 | -6/Cetus | Allies destroyed Cetus Guard 7397 | -6/Cetus | Spotted Cetus Guard 7397 | -6/Cetus | Destroyed Cetus Guard 7403 | -6/Cetus | Destroyed Cetus Guard 7405 | -6/Cetus | Discovered new exit (range 22) 7427 | -6/Cetus | Met Revision 17 7479 | -6/Cetus | Entered Factory 7479 | -5/Factory | Accompanied by 1 ally (A7) 7479 | -5/Factory | Evolved 2 slots: Power x1, Utility x1 7646 | -5/Factory | Lost 3 parts (1n2w) 8305 | -5/Factory | Discovered new exit (range 22) 8455 | -5/Factory | Identified exit to Factory 9173 | -5/Factory | Discovered new exit (range 17) 9228 | -5/Factory | Entered Upper Caves 9241 | -5/Upper Caves | Build established: Hauler-Skirmisher 9242 | -5/Upper Caves | Attracted the attention of an 0b10 checkpoint 9411 | -5/Upper Caves | Learned Factory terminal intel 9825 | -5/Upper Caves | Discovered new exit (range 3) 9829 | -5/Upper Caves | Entered another Upper Caves area 9885 | -5/Upper Caves | Attacked by a delusional Derelict stockpiling Unaware 10131 | -5/Upper Caves | Attracted the attention of an 0b10 checkpoint 10205 | -5/Upper Caves | Discovered new exit (range 16) 10234 | -5/Upper Caves | Learned Factory terminal intel 10243 | -5/Upper Caves | Identified exit to Warlord 10551 | -5/Upper Caves | Learned location of Armory (-3) 10821 | -5/Upper Caves | Discovered exit to Factory (range 6) 10830 | -5/Upper Caves | Entered Factory 10830 | -4/Factory | Evolved 2 slots: Propulsion x1, Utility x1 10831 | -4/Factory | Loaded intel: 19 terminal locations 10854 | -4/Factory | Found Prototype Processor 10854 | -4/Factory | Identified Exp. Melee Analysis Suite 11277 | -4/Factory | Discovered new exit (range 6) 11345 | -4/Factory | Repaired Imp. KE Penetrator 11419 | -4/Factory | Identified exit to Research 11595 | -4/Factory | Discovered exit to Research (range 17) 11644 | -4/Factory | Identified exit to Upper Caves 11718 | -4/Factory | Fabricated Imp. Weapon Cycler (x2) 11879 | -4/Factory | Entered Upper Caves 12282 | -4/Upper Caves | Discovered new exit (range 11) 12287 | -4/Upper Caves | Learned 8 Research zone layouts 12300 | -4/Upper Caves | Entered another Upper Caves area 12420 | -4/Upper Caves | Spotted B-86 Titan 12564 | -4/Upper Caves | Learned Research terminal intel 12690 | -4/Upper Caves | Encountered a Warlord checkpoint 12708 | -4/Upper Caves | Learned location of Quarantine (-3) 12768 | -4/Upper Caves | Discovered new exit (range 19) 12799 | -4/Upper Caves | Entered Zhirov 12801 | -4/Zhirov | Discovered new exit (range 4) 12831 | -4/Zhirov | Met Zhirov 12868 | -4/Zhirov | Found Alien Artifact 12868 | -4/Zhirov | Identified Integrated Dissipator 12868 | -4/Zhirov | Installed Integrated Dissipator, increased core heat dissipation (+20) 12922 | -4/Zhirov | Build established: Hauler-Mutant 12953 | -4/Zhirov | Learned location of Testing (-2) 12953 | -4/Zhirov | Learned location of Command (-1) 12961 | -4/Zhirov | Zhirov requested help retrieving the SGEMP Prototype 13031 | -4/Zhirov | Entered Proximity Caves 13345 | -3/Proximity Caves | Discovered exit to Research (range 14) 13367 | -3/Proximity Caves | Entered Research 13367 | -3/Research | Evolved 2 slots: Utility x2 13369 | -3/Research | Loaded intel: 19 terminal locations 13429 | -3/Research | Build established: Scavenger-Mutant 13494 | -3/Research | Spotted B-86 Titan 13621 | -3/Research | Found Prototype Device 13621 | -3/Research | Identified Exp. Shield Generator 13626 | -3/Research | Found Exp. Shield Generator 14184 | -3/Research | Build established: Scavenger-Skirmisher 14403 | -3/Research | System corruption reached 10% 14452 | -3/Research | Lost 3 parts (2n1w) 14453 | -3/Research | Destroyed 7 combat bots 14665 | -3/Research | Discovered new exit (range 20) 14697 | -3/Research | Found Fusion Bomb Launcher 15116 | -3/Research | Discovered new exit (range 11) 15363 | -3/Research | Build established: Hauler-Mutant 15464 | -3/Research | Discovered new exit (range 19) 15911 | -3/Research | First assault squad dispatched 15962 | -3/Research | Identified exit to Garrison 15963 | -3/Research | Entered Garrison 16021 | -3/Garrison | Triggered checkpoint 16056 | -3/Garrison | Triggered checkpoint 16057 | -3/Garrison | Spotted B-86 Titan 16209 | -3/Garrison | Destroyed B-86 Titan 16246 | -3/Garrison | Triggered checkpoint 16302 | -3/Garrison | Garrison Relay disabled 16480 | -3/Garrison | Discovered new exit (range 16) 16488 | -3/Garrison | Triggered checkpoint 16557 | -3/Garrison | Garrison Relay disabled 16632 | -3/Garrison | Expanded RIF knowledge: Autoassimilate 16640 | -3/Garrison | Entered Quarantine 16641 | -3/Quarantine | Maximum security lockdown engaged 16669 | -3/Quarantine | Found Gamma Bomb Array 16802 | -3/Quarantine | System corruption reached 30% 16842 | -3/Quarantine | Destroyed 26 combat bots 16844 | -3/Quarantine | Lost 13 parts (2p3n6u2w) 16872 | -3/Quarantine | Scanned by Researcher 16873 | -3/Quarantine | Spotted Investigator 16881 | -3/Quarantine | Destroyed Investigator 16908 | -3/Quarantine | Released all parts (16) 16909 | -3/Quarantine | Core integrity fell below 50% 16922 | -3/Quarantine | Core integrity fell below 20% 16926 | -3/Quarantine | Destroyed 15 combat bots 16928 | -3/Quarantine | Destroyed by H-77 Assassin with High-powered Shotgun Last Messages --------------- 16920_ Stasis bubble strength at 122. 16921_ Stasis bubble strength at 116. 16921_ Penetrated by Slug. 16922_ Stasis bubble strength at 110. 16922_ Penetrated by Slug. 16922_ Slug penetrates Wall. 16923_ Stasis bubble strength at 104. 16923_ M-36 Artificer fits Unknown Power Core on M-36 Artificer. 16924_ Stasis bubble strength at 98. 16925_ Stasis bubble strength at 92. 16925_ Penetrated by Slug. 16925_ Slug penetrates Wall. 16925_ Penetrated by Slug. 16925_ Slug penetrates Wall. 16926_ Stasis bubble strength at 86. 16927_ System corrupted: Matter fused (-5). 16927_ Stasis bubble strength at 80. 16927_ H-77 Assassin destroyed. 16928_ Stasis bubble strength at 74. 16928_ Penetrated by Slug. Map ----- +----------------------------------------------------+ | # " # # = ####?##???#?###?????????? | | # " " " + ######?#####?##?????????? | | # """ # # = """"###?###?#??###??????????? | | # """ " # #"" """"####?#?#??#?##?#????????? | | ]]#?? """?# " """" ##?####?##?#??#????????? | | ] # ? T " # " ##?###?#####???????????? | | ] # " # ##?#?##?##?####????????? | | # ? # # ###??#####?#?###???????? | | #######?## # ######?##?##??????????? | | ########## # ######?#??##?###???????? | | ########?# !%= ## #??#######?###???????? | | ########## * ###?##?####??####??????? | | ############# # # #####?##### ???????? | | ###?######### ggg # #?? ??#?? ???????? | | #######?##### #% ## """ ""? ? ????????? | | ##?#### h %w ### " " "?" # ? ???????? | | ####### ### ## """ """?# "????????? | | ? ? #?#### # %[ = # ""T"" ?#??????????? | | ? ?? ?#### # %% ## ?? ?? # ?????????? | | ???? ### = # ? ???????????? | | ?? ??# # ] # ??? ???????????? | | ?????#### % ####+######+######??? | | ????##??# ! !!=[=! | | ?????#??# ]!!!!!m[%[ | | ???#????# "" !%=%m[*g[! | | ????????# # [*=@[!!==h*%% | | ????????# # |! !!!%%####"######+######+# | | ????????########### #!*![ ##???+#?????????????? | | ??????????##?????## # ! #???????????????????? | | ?????????? ?#????# # #???????????????????? | | ????????????? ? ## # #???????????????????? | | ??????????????## # ## #???????????????????? | | ???????????????# ##??# #???????????????????? | | ???????????????# ### ##????##???????????????????? | | ???????????????# ??# #??????????????????????????? | | ???????????????#???# ???????????????????????????? | | ???????????????????# ???????????????????????????? | | ???????????????????# ???????????????????????????? | | ???????????????????# ???????????????????????????? | | ???????????????????# ???????????????????????????? | | ???????????????????+ ???????????????????????????? | | ???????????????????# ???????????????????????????? | | ???????????????????# ???????????????????????????? | | ?????????????????????????????????????????????????? | | ?????????????????????????????????????????????????? | | ?????????????????????????????????????????????????? | | ?????????????????????????????????????????????????? | | ?????????????????????????????????????????????????? | | ?????????????????????????????????????????????????? | | ?????????????????????????????????????????????????? | +----------------------------------------------------+ Best States ------------- Heat Dissipation 66 Energy Generation 45 Energy Capacity 1180 Matter Stores 300 Matter Capacity 300 Sight Range 22 Robot Scan Range 20 Terrain Scan Range 20 Terrain Scan Density 210 Jamming Range 14 Armor Coverage 450 Resistance: TH 30 Weapon Shielding 66 Weapon Cycling 30 Evasion (%) 40 Core Analysis 10 Recoil Reduction 5 Energy Filtering 50 Kinecelleration 40 Salvage Targeting 3 Relay Coupler Types 37 Relay Coupler Value 1 Item Schematics ----------------- Hcp. Storage Unit | -10/Materials | Hacked Imp. Weapon Cycler | -4/Factory | Hacked Assault Drone Bay | -4/Zhirov | Free Exp. Heat Sink | -4/Zhirov | Free Exp. Optical Array | -4/Zhirov | Free Imp. Arc Thrower | -4/Zhirov | Free Robot Schematics ------------------ None Fabricated ------------ Imp. Weapon Cycler | x2 | -4/Factory Alien Tech Used ----------------- Integrated Dissipator Achievements -------------- None Challenges ------------ None Game ------ Seed CooledEnhancedMicroactuators Manual? 0 Play Time 04:32:01 Cumulative 380.5 hours Start 2021.11.26 @ 21:55:35 End 2021.11.27 @ 20:59:04 Sessions 17 Manual Loads 0 Difficulty Rogue Special Mode None Game No. 187 Rogue 69 Adventurer 116 Explorer 2 Win Type - Total 32 Types 29/2/0/0/0/0/0/0/1 Lore% 55 Gallery% 82 Achievement% 60 Wizard Run 0 Options --------- ASCII 0 Keyboard 1 Movement Numpad Keybinds 0 Fullscreen 1 Font 36/TerminusFine Map View 76x50 Tactical HUD 1 Map Filters NONE Filters NONE Steam 1 RUN: ee410128-efa4-4353-8586-1daeccbbe09e